[Event "18th Charleroi Open-A 2019"]
[Site "Charleroi"]
[Date "2019.07.31"]
[Round "6.14"]
[White "Goormachtigh, Johan"]
[Black "Roels, Frederik"]
[Result "1-0"]
[ECO "D70"]
[WhiteElo "2164"]
[BlackElo "1944"]
[Annotator "NA"]
[PlyCount "61"]
[EventDate "2019.07.22"]
[EventType "swiss"]
[EventCountry "BEL"]
[SourceTitle "playchess.com"]
[Source "ChessBase"]
[SourceQuality "1"]
[TimeControl "40/5400+30:1800+30"]

1. d4 {[%emt 0:00:00]} Nf6 {[%emt 0:00:00]} 2. Nf3 {[%emt 0:00:20]} g6 {[%emt 0:00:49]} 3. c4 {[%emt 0:02:00]} d5 {[%emt 0:01:04]} 4. cxd5 {[%emt 0:00:46]} Bg7 {[%emt 0:00:12]} 5. Qa4+ {[%emt 0:09:58]} Kf8 {[%emt 0:06:47]} 6. Nc3 {[%emt 0:03:19]} Nxd5 {[%emt 0:00:10]} 7. e4 {[%emt 0:03:07]} Nxc3 {[%emt 0:01:26]} 8. bxc3 {[%emt 0:00:03]} c5 {[%emt 0:00:34]} 9. Be3 {[%emt 0:18:01]} Nc6 {[%emt 0:03:39]} 10. Be2 {[%emt 0:03:46]} cxd4 {[%emt 0:01:28]} 11. cxd4 {[%emt 0:00:02]} Bg4 {[%emt 0:09:24]} 12. Rd1 {[%emt 0:08:11]} Kg8 {[%emt 0:02:06]} 13. O-O {[%emt 0:00:33]} h6 {[%emt 0:01:58]} 14. h3 {[%emt 0:06:21]} Bd7 {[%emt 0:01:46]} 15. Qa3 {[%emt 0:00:27]} Qe8 {[%emt 0:13:41]} 16. d5 {[%emt 0:03:57]} Ne5 {[%emt 0:01:36]} 17. Nxe5 {[%emt 0:05:47]} Bxe5 {[%emt 0:00:05]} 18. f4 {[%emt 0:00:07]} Bc7 {[%emt 0:03:09]} 19. Qb4 {[%emt 0:05:26]} b5 {[%emt 0:03:41]} 20. e5 {[%emt 0:03:50]} Kh7 {[%emt 0:02:42]} 21. Bc5 {[%emt 0:02:51]} Bb6 {[%emt 0:01:41]} 22. Rc1 {[%emt 0:02:18]} Qb8 {[%emt 0:03:44]} 23. Kh1 {[%emt 0:04:18]} a5 {[%emt 0:05:04]} 24. Qd4 {[%emt 0:00:43]} Bxc5 {[%emt 0:00:10]} 25. Qxc5 {[%emt 0:00:40]} Ra7 {[%emt 0:03:07]} 26. e6 {[%emt 0:01:46]} Rc8 {[%emt 0:01:07]} 27. Qxe7 {[%emt 0:02:17]} Bxe6 {[%emt 0:01:18]} 28. Rxc8 {[%emt 0:01:10]} Bxc8 {[%emt 0:00:04]} 29. Qe8 {[%emt 0:01:37]} b4 {[%emt 0:01:43]} 30. f5 {[%emt 0:05:08]} g5 {[%emt 0:01:53]} 31. f6 {[%emt 0:00:36]} 1-0

[Event "18th Charleroi Open-A 2019"]
[Site "Charleroi"]
[Date "2019.07.31"]
[Round "6.15"]
[White "Butzen, Robin"]
[Black "Soyunlu, Narmin"]
[Result "0-1"]
[ECO "E05"]
[WhiteElo "1967"]
[BlackElo "2099"]
[Annotator "NA RC"]
[PlyCount "56"]
[EventDate "2019.07.22"]
[EventType "swiss"]
[EventCountry "BEL"]
[SourceTitle "playchess.com"]
[Source "ChessBase"]
[SourceQuality "1"]
[TimeControl "40/5400+30:1800+30"]

1. d4 {[%emt 0:00:00]} Nf6 {[%emt 0:02:19]} 2. c4 {[%emt 0:02:34]} e6 {[%emt 0:00:06]} 3. Nf3 {[%emt 0:00:04]} d5 {[%emt 0:03:18]} 4. g3 {[%emt 0:00:24]} Be7 {[%emt 0:01:31]} 5. Bg2 {[%emt 0:00:06]} O-O {[%emt 0:00:07]} 6. O-O {[%emt 0:00:04]} dxc4 {[%emt 0:00:04]} 7. Ne5 {[%emt 0:00:08]} Nc6 {[%emt 0:01:40]} 8. Bxc6 {[%emt 0:00:56]} bxc6 {[%emt 0:00:09]} 9. Nxc6 {[%emt 0:00:03]} Qe8 {[%emt 0:00:10]} 10. Nxe7+ {[%emt 0:00:09]} Qxe7 {[%emt 0:00:03]} 11. Na3 {[%emt 0:00:21]} e5 {[%emt 0:14:55]} 12. dxe5 {[%emt 0:31:38]} Qxe5 {[%emt 0:00:13]} 13. Nxc4 {[%emt 0:19:03]} Qh5 {[%emt 0:10:47]} 14. Ne3 {[%emt 0:07:25]} Ba6 {[%emt 0:12:06]} 15. Re1 {[%emt 0:04:51]} Rfe8 {[%emt 0:09:40]} 16. Qc2 {[%emt 0:02:27]} Ne4 {[%emt 0:09:59]} 17. Ng2 {[%emt 0:01:59]} Qf5 {[%emt 0:31:23]} 18. Be3 {[%emt 0:00:00]} c6 {[%emt 0:18:09]} 19. Rac1 {[%emt 0:00:00]} Re6 {[%emt 0:02:30]} 20. f3 {[%emt 0:00:00]} Nd6 {[%emt 0:01:57]} 21. Qxf5 {[%emt 0:00:00]} Nxf5 {[%emt 0:00:01]} 22. Bf2 {[%emt 0:00:00]} Rxe2 {[%emt 0:00:50]} 23. Rxc6 {[%emt 0:00:00]} Bb7 {[%emt 0:02:30]} 24. Rxe2 {[%emt 0:00:00]} Bxc6 {[%emt 0:00:01]} 25. Ne1 {[%emt 0:00:00]} h5 {[%emt 0:01:05]} 26. Kg2 {[%emt 0:00:00]} Nd6 {[%emt 0:00:52]} 27. Rc2 {[%emt 0:00:00]} Bb5 {[%emt 0:00:15]} 28. Rc5 {[%emt 0:00:00]} Be2 {[%emt 0:02:19]} 0-1

[Event "18th Charleroi Open-A 2019"]
[Site "Charleroi"]
[Date "2019.07.31"]
[Round "6.17"]
[White "Ramacker, Quinten"]
[Black "Van Mechelen, Jan"]
[Result "0-1"]
[ECO "B80"]
[WhiteElo "2006"]
[BlackElo "2218"]
[Annotator "NA"]
[PlyCount "34"]
[EventDate "2019.07.22"]
[EventType "swiss"]
[EventCountry "BEL"]
[SourceTitle "playchess.com"]
[Source "ChessBase"]
[SourceQuality "1"]
[TimeControl "40/5400+30:1800+30"]

1. e4 {[%emt 0:00:00]} c5 {[%emt 0:00:00]} 2. Nf3 {[%emt 0:00:15]} d6 {[%emt 0:00:07]} 3. d4 {[%emt 0:00:20]} cxd4 {[%emt 0:00:08]} 4. Nxd4 {[%emt 0:00:08]} Nf6 {[%emt 0:00:10]} 5. Nc3 {[%emt 0:00:09]} e6 {[%emt 0:00:13]} 6. Bg5 {[%emt 0:04:19]} Be7 {[%emt 0:00:43]} 7. f4 {[%emt 0:02:24]} h6 {[%emt 0:00:24]} 8. Bxf6 {[%emt 0:02:44]} Bxf6 {[%emt 0:00:36]} 9. Ndb5 {[%emt 0:12:45]} Be7 {[%emt 0:01:04]} 10. e5 {[%emt 0:06:09]} d5 {[%emt 0:04:19]} 11. f5 {[%emt 0:14:40]} O-O {[%emt 0:13:28]} 12. f6 {[%emt 0:12:42]} gxf6 {[%emt 0:00:32]} 13. Qg4+ {[%emt 0:00:44]} Kh7 {[%emt 0:03:29]} 14. exf6 {[%emt 0:01:52]} Bxf6 {[%emt 0:00:19]} 15. Bd3+ {[%emt 0:00:46]} Kh8 {[%emt 0:00:12]} 16. O-O {[%emt 0:05:04]} Bg7 {[%emt 0:01:41]} 17. Qh5 {[%emt 0:02:48]} a6 {[%emt 0:04:48]} 0-1

[Event "18th Charleroi Open-A 2019"]
[Site "Charleroi"]
[Date "2019.07.31"]
[Round "6.20"]
[White "Moreels, Yves"]
[Black "Verbist, Julien"]
[Result "1/2-1/2"]
[ECO "B14"]
[WhiteElo "2079"]
[BlackElo "1974"]
[Annotator "NA"]
[PlyCount "46"]
[EventDate "2019.07.22"]
[EventType "swiss"]
[EventCountry "BEL"]
[SourceTitle "playchess.com"]
[Source "ChessBase"]
[SourceQuality "1"]
[TimeControl "40/5400+30:1800+30"]

1. c4 {[%emt 1:30:30]} c6 {[%emt 1:30:30]} 2. e4 {[%emt 0:00:00]} d5 {[%emt 0:00:30]} 3. exd5 {[%emt 0:01:00]} cxd5 {[%emt 0:00:00]} 4. d4 {[%emt 0:00:30]} Nf6 {[%emt 0:00:00]} 5. Nc3 {[%emt 0:00:30]} Nc6 {[%emt 0:01:30]} 6. Nf3 {[%emt 0:00:30]} e6 {[%emt 0:00:30]} 7. Bg5 {[%emt 0:00:00]} Be7 {[%emt 0:00:30]} 8. c5 {[%emt 0:01:00]} O-O {[%emt 0:00:30]} 9. Bb5 {[%emt 0:00:30]} Ne4 {[%emt 0:00:30]} 10. Bxe7 {[%emt 0:00:30]} Nxc3 11. Bxd8 {[%emt 0:00:00]} Nxd1 12. Bxc6 {[%emt 0:01:00]} bxc6 {[%emt 0:01:30]} 13. Rxd1 {[%emt 0:00:30]} Rxd8 {[%emt 0:00:30]} 14. O-O {[%emt 0:00:30]} f6 {[%emt 0:00:00]} 15. Rfe1 {[%emt 0:00:30]} Kf7 {[%emt 0:01:00]} 16. h4 {[%emt 0:00:30]} Rb8 {[%emt 0:00:30]} 17. Rd2 {[%emt 0:00:30]} Rb4 {[%emt 0:00:30]} 18. a3 {[%emt 0:00:30]} Rb3 {[%emt 0:00:30]} 19. Re3 {[%emt 0:00:30]} Rxe3 {[%emt 0:00:00]} 20. fxe3 {[%emt 0:00:30]} a5 {[%emt 0:01:00]} 21. b4 {[%emt 0:00:30]} Ba6 {[%emt 0:00:30]} 22. Rb2 {[%emt 0:00:30]} Rb8 {[%emt 0:00:30]} 23. Kf2 {[%emt 0:00:30]} h5 {[%emt 0:00:30]} 1/2-1/2

[Event "18th Charleroi Open-A 2019"]
[Site "Charleroi"]
[Date "2019.07.31"]
[Round "6.21"]
[White "Vernimmen, Pierre"]
[Black "Hafner, Christian"]
[Result "1-0"]
[ECO "A59"]
[WhiteElo "1911"]
[BlackElo "2071"]
[Annotator "NA"]
[PlyCount "95"]
[EventDate "2019.07.22"]
[EventType "swiss"]
[EventCountry "BEL"]
[SourceTitle "playchess.com"]
[Source "ChessBase"]
[SourceQuality "1"]
[TimeControl "40/5400+30:1800+30"]

1. d4 {[%emt 1:30:30]} Nf6 {[%emt 1:30:30]} 2. c4 {[%emt 0:00:30]} c5 {[%emt 0:00:30]} 3. d5 {[%emt 0:00:30]} b5 {[%emt 0:00:30]} 4. cxb5 {[%emt 0:00:30]} a6 {[%emt 0:00:30]} 5. bxa6 {[%emt 0:00:30]} g6 {[%emt 0:00:30]} 6. Nc3 {[%emt 0:00:30]} Bxa6 {[%emt 0:00:30]} 7. e4 {[%emt 0:00:30]} Bxf1 {[%emt 0:00:30]} 8. Kxf1 {[%emt 0:00:30]} d6 {[%emt 0:00:30]} 9. Nf3 {[%emt 0:00:30]} Nbd7 {[%emt 0:00:30]} 10. g3 {[%emt 0:00:30]} Bg7 {[%emt 0:00:30]} 11. Kg2 {[%emt 0:00:30]} O-O {[%emt 0:00:30]} 12. a4 {[%emt 0:00:30]} Ng4 {[%emt 0:00:30]} 13. Qe2 {[%emt 0:00:30]} Qb6 {[%emt 0:00:30]} 14. h3 {[%emt 0:00:30]} Nge5 {[%emt 0:00:30]} 15. Nxe5 {[%emt 0:00:30]} Nxe5 {[%emt 0:00:30]} 16. f4 {[%emt 0:00:30]} Nd7 {[%emt 0:00:30]} 17. Bd2 {[%emt 0:00:30]} Rfc8 {[%emt 0:00:30]} 18. b3 {[%emt 0:00:30]} Bxc3 {[%emt 0:00:30]} 19. Bxc3 Qxb3 20. Qd3 Rxa4 21. Rxa4 Qxa4 22. Ra1 Qb3 23. Ra7 {[%emt 0:02:30]} Rd8 {[%emt 0:02:30]} 24. Qd2 {[%emt 0:00:30]} Qb6 {[%emt 0:00:30]} 25. Qa2 {[%emt 0:00:30]} f6 {[%emt 0:00:30]} 26. Qa4 {[%emt 0:00:30]} Qb1 {[%emt 0:00:30]} 27. Rxd7 {[%emt 0:00:30]} Rxd7 {[%emt 0:00:30]} 28. Qxd7 {[%emt 0:00:30]} Qxe4+ {[%emt 0:00:30]} 29. Kh2 {[%emt 0:00:30]} Kf7 {[%emt 0:00:30]} 30. Qe6+ {[%emt 0:00:30]} Qxe6 {[%emt 0:00:30]} 31. dxe6+ {[%emt 0:00:30]} Kxe6 {[%emt 0:00:30]} 32. Kg2 {[%emt 0:00:30]} Kd5 {[%emt 0:00:30]} 33. Kf3 {[%emt 0:00:30]} Kc4 {[%emt 0:00:30]} 34. Ba5 {[%emt 0:00:30]} Kd3 {[%emt 0:00:30]} 35. Bd8 {[%emt 0:00:30]} e5 {[%emt 0:00:30]} 36. Bxf6 {[%emt 0:00:30]} e4+ {[%emt 0:00:30]} 37. Kf2 {[%emt 0:00:30]} d5 {[%emt 0:00:30]} 38. g4 {[%emt 0:00:30]} d4 39. f5 e3+ 40. Kf3 c4 41. Bxd4 {[%emt 0:31:30]} Kxd4 42. f6 c3 {[%emt 0:32:30]} 43. f7 {[%emt 0:01:00]} c2 {[%emt 0:00:30]} 44. f8=Q {[%emt 0:00:30]} c1=Q {[%emt 0:00:30]} 45. Qd6+ {[%emt 0:00:30]} Kc3 {[%emt 0:00:30]} 46. Qc5+ {[%emt 0:00:30]} Kd2 {[%emt 0:00:30]} 47. Qxc1+ {[%emt 0:00:30]} Kxc1 {[%emt 0:00:30]} 48. Kxe3 {[%emt 0:00:30]} 1-0

[Event "18th Charleroi Open-A 2019"]
[Site "Charleroi"]
[Date "2019.07.31"]
[Round "6.23"]
[White "De Weird, Matthias"]
[Black "Boucquet, Emile"]
[Result "0-1"]
[ECO "B20"]
[WhiteElo "2009"]
[BlackElo "2064"]
[Annotator "NA"]
[PlyCount "82"]
[EventDate "2019.07.22"]
[EventType "swiss"]
[EventCountry "BEL"]
[SourceTitle "playchess.com"]
[Source "ChessBase"]
[SourceQuality "1"]
[TimeControl "40/5400+30:1800+30"]

1. a3 {[%emt 0:02:00]} c5 {[%emt 0:03:28]} 2. e4 {[%emt 0:00:21]} Nf6 {[%emt 0:00:15]} 3. Nc3 {[%emt 0:06:22]} Nc6 {[%emt 0:01:01]} 4. Bc4 {[%emt 0:04:07]} e6 {[%emt 0:01:36]} 5. Nf3 {[%emt 0:01:47]} d5 {[%emt 0:02:26]} 6. exd5 {[%emt 0:00:07]} exd5 {[%emt 0:00:08]} 7. Bb5 {[%emt 0:00:22]} Bg4 {[%emt 0:04:59]} 8. O-O {[%emt 0:01:23]} Be7 {[%emt 0:00:18]} 9. h3 {[%emt 0:00:32]} Bh5 {[%emt 0:01:33]} 10. d3 {[%emt 0:04:58]} O-O {[%emt 0:06:11]} 11. g4 {[%emt 0:03:39]} Nxg4 {[%emt 0:09:05]} 12. hxg4 {[%emt 0:00:54]} Bxg4 {[%emt 0:00:07]} 13. Bxc6 {[%emt 0:00:08]} bxc6 {[%emt 0:00:02]} 14. Kg2 {[%emt 0:07:22]} Qc8 {[%emt 0:02:58]} 15. Ne2 {[%emt 0:01:20]} Bh3+ {[%emt 0:08:03]} 16. Kg1 {[%emt 0:00:08]} Qg4+ {[%emt 0:06:40]} 17. Ng3 {[%emt 0:05:04]} Bxf1 18. Kxf1 {[%emt 0:00:09]} h5 {[%emt 0:01:52]} 19. Qe1 {[%emt 0:06:41]} Bd6 {[%emt 0:17:04]} 20. Nh2 {[%emt 0:04:41]} Qg6 {[%emt 0:03:46]} 21. f4 {[%emt 0:01:12]} h4 {[%emt 0:04:20]} 22. Nh1 {[%emt 0:02:20]} c4 {[%emt 0:01:53]} 23. Qxh4 {[%emt 0:00:50]} cxd3 {[%emt 0:00:19]} 24. Nf2 {[%emt 0:01:45]} dxc2 {[%emt 0:00:42]} 25. Bd2 {[%emt 0:03:03]} Rab8 {[%emt 0:02:19]} 26. Bc3 {[%emt 0:03:26]} Bxa3 {[%emt 0:00:58]} 27. f5 {[%emt 0:09:25]} Qxf5 {[%emt 0:02:33]} 28. Bxg7 {[%emt 0:00:13]} Kxg7 {[%emt 0:01:15]} 29. Qg3+ {[%emt 0:00:25]} Kh7 {[%emt 0:02:22]} 30. Qxa3 {[%emt 0:12:08]} Rg8 {[%emt 0:00:48]} 31. Qc3 {[%emt 0:02:32]} d4 {[%emt 0:02:49]} 32. Qxd4 {[%emt 0:02:38]} Qb5+ {[%emt 0:00:09]} 33. Nd3 {[%emt 0:00:17]} Rbd8 {[%emt 0:03:25]} 34. Qh4+ {[%emt 0:04:32]} Kg7 {[%emt 0:00:14]} 35. Kf2 {[%emt 0:00:05]} Qxd3 {[%emt 0:01:57]} 36. Rg1+ {[%emt 0:00:09]} Kf8 {[%emt 0:00:13]} 37. Qh6+ {[%emt 0:00:02]} Ke7 {[%emt 0:00:16]} 38. Re1+ {[%emt 0:00:55]} Kd7 {[%emt 0:00:34]} 39. Nf3 {[%emt 0:00:06]} Rge8 {[%emt 0:04:10]} 40. Re5 {[%emt 0:11:14]} Qd6 {[%emt 0:01:13]} 41. Qh3+ {[%emt 0:30:16]} Kc7 {[%emt 0:30:10]} 0-1

[Event "18th Charleroi Open-A 2019"]
[Site "Charleroi"]
[Date "2019.07.31"]
[Round "6.24"]
[White "Guion, Geoffrey"]
[Black "Van Dijck, Bjarne"]
[Result "0-1"]
[ECO "C45"]
[WhiteElo "2006"]
[BlackElo "2053"]
[Annotator "NA"]
[PlyCount "38"]
[EventDate "2019.07.22"]
[EventType "swiss"]
[EventCountry "BEL"]
[SourceTitle "playchess.com"]
[Source "ChessBase"]
[SourceQuality "1"]
[TimeControl "40/5400+30:1800+30"]

1. e4 {[%emt 0:00:00]} e5 {[%emt 0:00:00]} 2. Nf3 {[%emt 0:00:00]} Nc6 {[%emt 0:00:00]} 3. d4 {[%emt 0:00:00]} exd4 {[%emt 0:00:05]} 4. Nxd4 {[%emt 0:00:00]} Bc5 {[%emt 0:01:09]} 5. Nxc6 {[%emt 0:00:08]} bxc6 {[%emt 0:00:22]} 6. Bd3 {[%emt 0:00:20]} d6 {[%emt 0:01:09]} 7. O-O {[%emt 0:00:11]} Nf6 {[%emt 0:00:15]} 8. Nc3 {[%emt 0:02:44]} Ng4 {[%emt 0:02:11]} 9. Be2 {[%emt 0:05:13]} h5 {[%emt 0:14:59]} 10. g3 {[%emt 0:07:29]} Qf6 {[%emt 0:14:53]} 11. Bf3 {[%emt 0:05:14]} Ne5 {[%emt 0:09:11]} 12. Bg2 {[%emt 0:03:17]} Ba6 {[%emt 0:18:04]} 13. Ne2 {[%emt 0:04:43]} Ng4 {[%emt 0:05:43]} 14. Qe1 {[%emt 0:05:43]} h4 {[%emt 0:01:51]} 15. e5 {[%emt 0:08:05]} dxe5 {[%emt 0:08:51]} 16. b4 {[%emt 0:12:12]} Bb6 {[%emt 0:01:05]} 17. a4 {[%emt 0:01:35]} hxg3 {[%emt 0:04:44]} 18. hxg3 {[%emt 0:02:15]} g5 {[%emt 0:09:34]} 19. Be4 {[%emt 0:17:57]} Qh6 {[%emt 0:00:33]} 0-1

[Event "18th Charleroi Open-A 2019"]
[Site "Charleroi"]
[Date "2019.07.31"]
[Round "6.25"]
[White "Moerman, Thomas"]
[Black "Fischer, Julie"]
[Result "0-1"]
[ECO "E94"]
[WhiteElo "1931"]
[BlackElo "2050"]
[Annotator "NA"]
[PlyCount "64"]
[EventDate "2019.07.22"]
[EventType "swiss"]
[EventCountry "BEL"]
[SourceTitle "playchess.com"]
[Source "ChessBase"]
[SourceQuality "1"]
[TimeControl "40/5400+30:1800+30"]

1. d4 {[%emt 0:00:00]} Nf6 {[%emt 0:04:56]} 2. c4 {[%emt 0:00:00]} g6 {[%emt 0:00:20]} 3. Nc3 {[%emt 0:00:06]} Bg7 {[%emt 0:00:03]} 4. e4 {[%emt 0:00:08]} d6 {[%emt 0:00:04]} 5. Nf3 {[%emt 0:00:08]} O-O {[%emt 0:00:08]} 6. Be2 {[%emt 0:00:05]} Na6 {[%emt 0:00:04]} 7. O-O {[%emt 0:00:46]} e5 {[%emt 0:00:49]} 8. Be3 {[%emt 0:03:58]} Qe8 {[%emt 0:02:44]} 9. d5 {[%emt 0:21:42]} Ng4 {[%emt 0:01:53]} 10. Bc1 {[%emt 0:03:19]} f5 {[%emt 0:07:59]} 11. Ne1 {[%emt 0:05:45]} Nf6 {[%emt 0:00:51]} 12. f3 {[%emt 0:00:13]} f4 {[%emt 0:00:32]} 13. Nd3 {[%emt 0:03:14]} g5 {[%emt 0:00:14]} 14. g3 {[%emt 0:04:32]} Qg6 {[%emt 0:06:33]} 15. c5 {[%emt 0:17:52]} g4 {[%emt 0:05:31]} 16. Bxf4 {[%emt 0:06:26]} gxf3 {[%emt 0:01:52]} 17. Bxf3 {[%emt 0:01:15]} exf4 {[%emt 0:01:10]} 18. Nxf4 {[%emt 0:00:09]} Qe8 {[%emt 0:02:50]} 19. cxd6 {[%emt 0:01:32]} cxd6 {[%emt 0:02:24]} 20. Qe2 {[%emt 0:01:03]} Bd7 {[%emt 0:03:52]} 21. Rae1 {[%emt 0:04:49]} Qe5 {[%emt 0:03:51]} 22. Kh1 {[%emt 0:06:52]} Nc5 {[%emt 0:02:14]} 23. Nb5 {[%emt 0:02:48]} Ne8 {[%emt 0:10:16]} 24. b4 {[%emt 0:00:56]} Na4 {[%emt 0:02:45]} 25. Nh5 {[%emt 0:02:25]} Bxb5 {[%emt 0:03:25]} 26. Qxb5 {[%emt 0:00:18]} Rxf3 {[%emt 0:01:32]} 27. Rxf3 {[%emt 0:00:17]} Qxh5 {[%emt 0:06:59]} 28. Rf5 {[%emt 0:00:23]} Qg6 {[%emt 0:01:06]} 29. Qxa4 {[%emt 0:01:18]} Nf6 {[%emt 0:00:12]} 30. Ref1 {[%emt 0:05:40]} Ng4 {[%emt 0:08:24]} 31. Qb3 {[%emt 0:02:18]} Qh6 {[%emt 0:00:53]} 32. h4 {[%emt 0:00:13]} Qd2 {[%emt 0:00:33]} 0-1

[Event "18th Charleroi Open-A 2019"]
[Site "Charleroi"]
[Date "2019.07.31"]
[Round "6.26"]
[White "De Block, Fabio"]
[Black "Bruno, Ricardo"]
[Result "0-1"]
[ECO "E91"]
[WhiteElo "2039"]
[BlackElo "2007"]
[Annotator "NA"]
[PlyCount "62"]
[EventDate "2019.07.22"]
[EventType "swiss"]
[EventCountry "BEL"]
[SourceTitle "playchess.com"]
[Source "ChessBase"]
[SourceQuality "1"]
[TimeControl "40/5400+30:1800+30"]

1. d4 {[%emt 1:30:30]} Nf6 {[%emt 0:03:34]} 2. c4 {[%emt 0:00:00]} g6 {[%emt 0:00:08]} 3. Nc3 {[%emt 0:00:00]} Bg7 {[%emt 0:00:05]} 4. e4 {[%emt 0:00:00]} d6 {[%emt 0:00:09]} 5. Nf3 {[%emt 0:00:00]} O-O {[%emt 0:00:13]} 6. Be2 {[%emt 0:00:00]} Bg4 {[%emt 0:00:12]} 7. Be3 {[%emt 0:00:00]} Nfd7 {[%emt 0:00:42]} 8. h3 {[%emt 0:00:00]} Bxf3 {[%emt 0:01:56]} 9. Bxf3 {[%emt 0:00:00]} Nc6 {[%emt 0:00:06]} 10. O-O {[%emt 0:00:00]} e5 {[%emt 0:00:09]} 11. dxe5 {[%emt 0:00:00]} dxe5 {[%emt 0:00:33]} 12. Bg4 {[%emt 0:00:00]} Nd4 {[%emt 0:04:49]} 13. b4 {[%emt 0:00:00]} f5 {[%emt 0:04:08]} 14. Bf3 {[%emt 0:00:00]} f4 {[%emt 0:04:20]} 15. Bc1 {[%emt 0:00:00]} a5 {[%emt 0:01:00]} 16. b5 {[%emt 0:00:00]} Rf7 {[%emt 0:02:55]} 17. Ba3 {[%emt 0:00:00]} Bf8 {[%emt 0:00:57]} 18. Bb2 {[%emt 0:00:00]} Nb6 {[%emt 0:04:49]} 19. Nd5 {[%emt 0:00:00]} Nxf3+ {[%emt 0:01:26]} 20. Qxf3 {[%emt 0:00:00]} Nxc4 {[%emt 0:00:25]} 21. Bc1 {[%emt 0:00:00]} c6 {[%emt 0:00:21]} 22. bxc6 {[%emt 0:00:00]} bxc6 {[%emt 0:00:08]} 23. Nc3 {[%emt 0:00:00]} Bb4 {[%emt 0:05:15]} 24. Rd1 {[%emt 0:00:00]} Rd7 {[%emt 0:00:42]} 25. Rxd7 {[%emt 0:00:00]} Qxd7 {[%emt 0:00:09]} 26. a3 {[%emt 0:00:00]} Bc5 {[%emt 0:03:31]} 27. Na4 {[%emt 0:00:00]} Bd4 {[%emt 0:01:41]} 28. Rb1 {[%emt 0:00:06]} Qa7 {[%emt 0:01:31]} 29. Qb3 {[%emt 0:03:30]} Qf7 {[%emt 0:02:49]} 30. Qc2 {[%emt 0:01:52]} Qe6 {[%emt 0:01:43]} 31. Nb2 {[%emt 0:01:59]} Nxa3 {[%emt 0:00:49]} 0-1

[Event "18th Charleroi Open-A 2019"]
[Site "Charleroi"]
[Date "2019.07.31"]
[Round "6.27"]
[White "Partoens, Remi"]
[Black "Miulescu, Gabriel"]
[Result "1-0"]
[ECO "B22"]
[WhiteElo "1957"]
[BlackElo "2020"]
[Annotator "NA"]
[PlyCount "83"]
[EventDate "2019.07.22"]
[EventType "swiss"]
[EventCountry "BEL"]
[SourceTitle "playchess.com"]
[Source "ChessBase"]
[SourceQuality "1"]
[TimeControl "40/5400+30:1800+30"]

1. e4 {[%emt 0:01:50]} c5 {[%emt 0:04:50]} 2. c3 {[%emt 0:00:08]} Nf6 {[%emt 0:00:24]} 3. e5 {[%emt 0:00:05]} Nd5 {[%emt 0:00:05]} 4. d4 {[%emt 0:00:04]} cxd4 {[%emt 0:00:09]} 5. cxd4 {[%emt 0:00:05]} e6 {[%emt 0:00:57]} 6. Nf3 {[%emt 0:00:18]} d6 {[%emt 0:00:47]} 7. a3 {[%emt 0:01:46]} Be7 {[%emt 0:02:20]} 8. Bd3 {[%emt 0:00:38]} Nc6 {[%emt 0:00:55]} 9. O-O {[%emt 0:00:30]} a6 {[%emt 0:04:03]} 10. b4 {[%emt 0:09:02]} Bd7 {[%emt 0:13:54]} 11. Nbd2 {[%emt 0:09:31]} dxe5 {[%emt 0:13:01]} 12. dxe5 {[%emt 0:00:59]} f5 {[%emt 0:10:29]} 13. Bb2 {[%emt 0:09:17]} O-O {[%emt 0:03:12]} 14. Nb3 {[%emt 0:03:16]} Be8 {[%emt 0:04:44]} 15. Nbd4 {[%emt 0:01:54]} Nxd4 {[%emt 0:08:52]} 16. Nxd4 {[%emt 0:02:59]} Qd7 {[%emt 0:02:52]} 17. Bc4 {[%emt 0:04:06]} Bf7 {[%emt 0:01:49]} 18. Qf3 {[%emt 0:00:59]} Rad8 {[%emt 0:07:23]} 19. Rad1 {[%emt 0:03:36]} b5 {[%emt 0:04:40]} 20. Bb3 {[%emt 0:00:05]} Qb7 {[%emt 0:00:17]} 21. Rfe1 {[%emt 0:03:31]} Rd7 {[%emt 0:02:05]} 22. Nxf5 {[%emt 0:04:26]} Bg6 {[%emt 0:04:33]} 23. Nxe7+ {[%emt 0:00:42]} Rxe7 {[%emt 0:00:08]} 24. Bxd5 {[%emt 0:00:12]} exd5 {[%emt 0:01:50]} 25. Qxd5+ {[%emt 0:00:11]} Qxd5 {[%emt 0:01:34]} 26. Rxd5 {[%emt 0:00:12]} Re6 {[%emt 0:00:45]} 27. Bd4 {[%emt 0:06:05]} Rc8 {[%emt 0:00:47]} 28. Bc5 {[%emt 0:00:06]} Bf7 {[%emt 0:00:30]} 29. Rd6 {[%emt 0:03:33]} a5 {[%emt 0:00:34]} 30. f4 {[%emt 0:00:17]} g6 {[%emt 0:00:58]} 31. g4 {[%emt 0:00:42]} axb4 {[%emt 0:01:12]} 32. axb4 {[%emt 0:00:07]} Rce8 {[%emt 0:00:59]} 33. Kf2 {[%emt 0:01:33]} Ra8 {[%emt 0:02:56]} 34. f5 {[%emt 0:00:51]} Ra2+ {[%emt 0:00:12]} 35. Kg3 {[%emt 0:00:27]} gxf5 {[%emt 0:01:20]} 36. gxf5 {[%emt 0:00:12]} Rxd6 {[%emt 0:00:13]} 37. Bxd6 {[%emt 0:00:14]} Bd5 {[%emt 0:00:34]} 38. e6 {[%emt 0:00:39]} Rg2+ {[%emt 0:00:41]} 39. Kh3 {[%emt 0:00:27]} Rd2 {[%emt 0:01:13]} 40. Bc5 {[%emt 0:00:18]} Bc6 {[%emt 0:00:32]} 41. f6 {[%emt 0:31:36]} Rd3+ {[%emt 0:30:29]} 42. Kh4 {[%emt 0:00:33]} 1-0